Cogmind - Beta 13 X2 @@@ ROGUE MODE // 2023.12.22 @ 20:41:09 Player: btmk16 Result: Destroyed by 8H-R9L(R) with Subdweller Machine Gun Performance ------------- Evolutions (0) 0 Regions Visited (2) 400 Robots Destroyed (21) 105 Value Destroyed (443) 443 Prototype IDs (4) 80 Alien Tech Used (0) 0 Bonus (0) 0 TOTAL SCORE: 1028 Bonus ------- None Cogmind --------- Core Integrity 0/250 Matter 247/300 Energy 100/100 System Corruption 0% Temperature Cool (0) Movement Treading (320) Ox2 Location -10/Subcaves Parts ------- > --- POWER (1) -------- (None) > --- PROPULSION (2) --- Light Treads > --- UTILITY (2) ------ Heat Sink High-capacity Storage Unit > --- WEAPON (2) ------- Improved Medium Laser Assault Rifle > --- INVENTORY (20) --- Aluminum Leg Aluminum Leg Wheel Compact Wheel Small Storage Unit Structural Scanner Signal Interpreter Improved Medium Laser Assault Rifle Peak State ------------ > --- POWER ------------ Heavy Ion Engine > --- PROPULSION ------- Light Treads Light Treads > --- UTILITY ---------- Heat Sink High-capacity Storage Unit > --- WEAPON ----------- Improved Medium Laser Improved Medium Laser > --- INVENTORY -------- Light Treads Aluminum Leg Aluminum Leg Wheel Compact Wheel Small Storage Unit Structural Scanner Signal Interpreter Improved Medium Laser Assault Rifle Assault Rifle [Rating: 14] Favorites ----------- Power Heavy Ion Engine Engine Heavy Ion Engine Propulsion Light Treads Treads Light Treads Wheel Wheel Utility High-capacity Storage Unit Device Heat Sink Storage High-capacity Storage Unit Weapon Improved Medium Laser Energy Gun Improved Medium Laser Ballistic Gun Assault Rifle Build | -11 -10 -10 ------- Run | Yrd Mat Sub Slots Evolved . | . . . Power . | . . . Propulsion . | . . . Utility . | . . . Weapon . | . . . Parts Attached 24 | 6 11 7 Power 3 | 1 2 . Engine 3 | 1 2 . Core . | . . . Reactor . | . . . Propulsion 11 | 2 4 5 Treads 7 | . 4 3 Leg . | . . . Wheel 4 | 2 . 2 Hover . | . . . Flight . | . . . Utility 3 | 1 2 . Device 1 | . 1 . Storage 2 | 1 1 . Processor . | . . . Hackware . | . . . Protection . | . . . Artifact . | . . . Weapon 7 | 2 3 2 Energy Gun 4 | . 3 1 Energy Cannon . | . . . Ballistic Gun 3 | 2 . 1 Ballistic Cannon . | . . . Launcher . | . . . Special Weapon . | . . . Impact Weapon . | . . . Slashing Weapon . | . . . Piercing Weapon . | . . . Special Melee Weapon . | . . . Unidentified Prototypes 2 | . 2 . Parts Lost 7 | . 1 6 Power 2 | . 1 1 Propulsion 4 | . . 4 Utility . | . . . Weapon 1 | . . 1 Highest Loss Streak 4 | . 1 4 To Critical Strikes . | . . . Average Slot Usage (%) 89 | . 88 94 Engine 13 | . 14 12 Treads 26 | . 27 18 Wheel 1 | . . 6 Device 5 | . 3 14 Storage 14 | . 14 14 Energy Gun 27 | . 27 26 Naked Turns . | . . . Heaviest Build 55 | 14 55 55 Greatest Support 40 | 26 40 40 Greatest Overweight (x) 5 | 1 1 5 Average Overweight (x) 1 | . . 3 Largest Inventory Capacity 20 | 8 20 20 Average Capacity 18 | 6 19 20 Most Carried 13 | 6 11 13 Average Carried 10 | 2 10 11 Final Capacity 20 | 8 20 20 Final Carried 11 | 6 11 9 Class Distribution -------------------- 100% | Mutant Dominant Class ---------------- Mutant | -10/Materials Mutant | -10/Subcaves Resources | -11 -10 -10 ----------- Run | Yrd Mat Sub Matter Collected 445 | 193 222 30 Remotely . | . . . Salvage Created 610 | 22 413 175 Parts 58 | 1 39 18 Haulers Intercepted 1 | . 1 . Recyclers Shooed 1 | . 1 . Parts Field Recycled . | . . . Retrieved Matter . | . . . Parts Self-Destructed 3 | . . 3 Prevented . | . . . Kills | -11 -10 -10 ------- Run | Yrd Mat Sub Combat Hostiles Destroyed 14 | . 10 4 Guns 14 | . 10 4 Classes Destroyed 9 | 1 6 2 Worker 1 | . 1 . Tunneler 1 | 1 . . Hauler 1 | . 1 . Operator 1 | . 1 . Watcher 3 | . 3 . Swarmer 6 | . 6 . Grunt 4 | . 4 . Artisan 1 | . . 1 Subdweller 4 | . . 4 Best Kill Streak 3 | 1 3 2 Combat Bots Only 3 | . 3 2 Max Kills in Single Turn 1 | 1 1 1 Gunslinging . | . . . Exploded . | . . . Melee . | . . . Uniques/NPCs Destroyed . | . . . Combat | -11 -10 -10 -------- Run | Yrd Mat Sub Hostile Shots Fired 92 | . 44 48 Missed 23 | . 14 9 Damage Taken 1091 | . 316 775 Core 254 | . 71 183 Absorbed by Shields . | . . . Core Remaining (%) 100 | 100 . . Volleys Fired 77 | 3 33 41 Largest 2 | 2 2 2 Hottest 112 | 40 112 112 Shots Fired 135 | 6 66 63 Gun 135 | 6 66 63 Cannon . | . . . Launcher . | . . . Special . | . . . Kinetic 17 | 6 . 11 Thermal 118 | . 66 52 Explosive . | . . . Electromagnetic . | . . . Robot Hit Streak 16 | 4 6 16 Robot Miss Streak 4 | 1 4 1 Penetration Max . | . . . Secondary Targets . | . . . Shots Hit Robots 95 | 4 34 57 Core Hits 27 | 1 17 9 Critical Kills . | . . . Critical Parts Destroyed . | . . . Critical Strikes 6 | . 5 1 Burn 6 | . 5 1 Melee Attacks . | . . . Impact . | . . . Slashing . | . . . Piercing . | . . . Sneak Attacks . | . . . Combat Hostiles . | . . . Follow-up Attacks . | . . . Damage Inflicted 1066 | 63 634 369 Guns 1066 | 63 634 369 Cannons . | . . . Explosions . | . . . Melee . | . . . Ramming . | . . . Kinetic 63 | 63 . . Thermal 1003 | . 634 369 Explosive . | . . . Electromagnetic . | . . . Impact . | . . . Slashing . | . . . Piercing . | . . . Highest Corruption . | . . . Average Corruption . | . . . Corruption Purged . | . . . Corruption Blocked . | . . . Overload Shots . | . . . Overflow Damage . | . . . Projectiles . | . . . Explosions . | . . . Melee . | . . . Knockbacks . | . . . Impact . | . . . Kinetic . | . . . Secondary . | . . . Self-Inflicted Damage . | . . . Shots . | . . . Rammed . | . . . Targets Rammed . | . . . Kicked . | . . . Crushed . | . . . Highest Temperature 458 | . 458 . Average Temperature 134 | . 134 . Received Heat Transfer 174 | . 120 54 Effects 5 | . 5 . Energy Bleed 2 | . 2 . Matter Decay 1 | . 1 . Short Circuit 1 | . 1 . Damage (minor) 1 | . 1 . Siege Activations . | . . . Robots Corrupted . | . . . Combat Hostiles . | . . . Parts Fried . | . . . Impact Corruptions . | . . . Robots Melted . | . . . Combat Hostiles . | . . . Parts Melted 6 | . 4 2 Heat Transferred 2627 | . 1739 888 Parts Sabotaged . | . . . Parts Stolen . | . . . Parts Stripped . | . . . Power Chain Reactions . | . . . Missiles Intercepted . | . . . Alert | -11 -10 -10 ------- Run | Yrd Mat Sub Peak Influence 155 | 5 155 . Initial 3 | . 3 . Average 42 | . 44 . Maximum Alert Level . | . . . Low Security (%) 100 | 100 100 . Level 1 . | . . . Level 2 . | . . . Level 3 . | . . . Level 4 . | . . . Level 5 . | . . . High Security . | . . . Max Security . | . . . Squads Dispatched 1 | . 1 . Investigation . | . . . Extermination . | . . . Reinforcement 1 | . 1 . Assault . | . . . Garrison . | . . . Intercept . | . . . Searches Triggered . | . . . Construction Impeded . | . . . Haulers Reinforced . | . . . Active Scanning Responses . | . . . Cargo Convoy Interrupts . | . . . Stealth | -11 -10 -10 --------- Run | Yrd Mat Sub Distress Signals 3 | . 3 . Communications Jammed . | . . . Distress Signals . | . . . Times Spotted 25 | . 20 5 Peak Tracking Total 5 | . 5 2 Tactical Retreats 2 | . 2 . Traps | -11 -10 -10 ------- Run | Yrd Mat Sub Traps Triggered 1 | . 1 . Indirectly . | . . . Trap Hack Attempts . | . . . Triggered . | . . . Disarmed . | . . . Reprogrammed . | . . . Reused . | . . . Traps Extracted . | . . . Installed . | . . . Triggered . | . . . Machines | -11 -10 -10 ---------- Run | Yrd Mat Sub Machines Disabled . | . . . Max in Single Turn . | . . . Machines Repaired . | . . . Machines Dismantled . | . . . Machines Sabotaged . | . . . Overloaded Fab Kills . | . . . Hacking | -11 -10 -10 --------- Run | Yrd Mat Sub Machines Accessed 6 | . 6 . Terminals 6 | . 6 . Fabricators . | . . . Repair Stations . | . . . Recycling Units . | . . . Scanalyzers . | . . . Garrison Access . | . . . Total Hacks 15 | . 15 . Successful 7 | . 7 . Failed 8 | . 8 . Catastrophic 1 | . 1 . Database Lockouts . | . . . Manual 8 | . 8 . Terminals 15 | . 15 . Fabricators . | . . . Repair Stations . | . . . Recycling Units . | . . . Scanalyzers . | . . . Garrison Access . | . . . Terminal Hacks 4 | . 4 . Prototype ID Bank 1 | . 1 . Alert Level 1 | . 1 . Locate Traps 2 | . 2 . Fabricator Hacks . | . . . Repair Station Hacks . | . . . Recycling Unit Hacks . | . . . Scanalyzer . | . . . Garrison Access Hacks . | . . . Unauthorized Hacks 3 | . 3 . Terminals 3 | . 3 . Track 2 | . 2 . Botnet 1 | . 1 . Fabricators . | . . . Repair Stations . | . . . Recycling Units . | . . . Scanalyzers . | . . . Garrison Access . | . . . Data Cores Recovered . | . . . Used . | . . . Hacking Detections 6 | . 6 . Full Trace Events . | . . . Feedback Events . | . . . Feedback Blocked . | . . . Robot Schematics Acquired . | . . . Robots Built . | . . . Authchips . | . . . Time . | . . . Total Robot Build Rating . | . . . Part Schematics Acquired . | . . . Parts Built . | . . . Authchips . | . . . Time . | . . . Total Part Build Rating . | . . . Parts Repaired . | . . . Time . | . . . Parts Recycled . | . . . Recycled Matter . | . . . Retrieved Matter . | . . . Retrieved Components . | . . . Parts Scanalyzed . | . . . Part Schematics Acquired . | . . . Parts Damaged . | . . . Bothacking | -11 -10 -10 ------------ Run | Yrd Mat Sub Used RIF Installer . | . . . Robots Hacked . | . . . Non-combat . | . . . Combat . | . . . Robot Hacks Applied . | . . . Relay Couplers Released . | . . . Fabnet Peak Effective % . | . . . Robots Rewired . | . . . Allies Hacked . | . . . Hacks Repelled . | . . . Allies | -11 -10 -10 -------- Run | Yrd Mat Sub Total Allies . | . . . Largest Group . | . . . Highest-Rated Group . | . . . Highest-Rated Ally . | . . . Total Orders . | . . . Ally Attacks . | . . . Total Damage . | . . . Kills . | . . . Allies Corrupted . | . . . Allies Melted . | . . . Intel | -11 -10 -10 ------- Run | Yrd Mat Sub Robot Analysis Total . | . . . Derelict Logs Recovered 1 | . . 1 Drone Launches . | . . . Drone Recoveries . | . . . Exploration | -11 -10 -10 ------------- Run | Yrd Mat Sub Turns Passed 2234 | 80 1764 390 Spaces Moved 835 | 86 620 129 Core 51 | 51 . . Treads 669 | . 606 63 Legs . | . . . Wheels 115 | 35 14 66 Hover . | . . . Flight . | . . . Fastest Speed 50 | 50 90 155 Average Speed 208 | 65 230 196 Slowest Speed 240 | 95 240 240 Overloaded Moves . | . . . Propulsion Burnouts . | . . . Robots Hopped . | . . . Cave-ins Triggered . | . . . Exploration Rate (%) 36 | 4 93 13 Regions Visited 2 Branch Regions 1 Pre-discovered Areas . | . . . Known Exits Taken . | . . . Unknown Exits Taken 2 | 1 1 . Scrap Searched . | . . . Spaces Dug . | . . . Terrain Destroyed . | . . . Melee . | . . . Projectile . | . . . AOE . | . . . Terrain Rammed . | . . . Walls Destroyed . | . . . Machines Disabled . | . . . Actions | -11 -10 -10 --------- Run | Yrd Mat Sub Total 1191 | 100 889 202 Wait 231 | . 208 23 Move 833 | 85 619 129 Hop . | . . . Pick Up 12 | 6 6 . Fast Attach 16 | 6 8 2 Attach 4 | . . 4 Detach 6 | . 4 2 Swap 5 | . 4 1 Drop 7 | . 7 . Fire 77 | 3 33 41 Melee . | . . . Ram . | . . . Kick . | . . . Crush . | . . . Escape Stasis . | . . . Rewire . | . . . Trap . | . . . Miscellaneous . | . . . Route ------- -11/Scrapyard -10/Materials (discovered 6 exits: [*Mat x3] / [*Min x2] / [*Sub]) -10/Subcaves History --------- Turn | Location | Event 36 | -11/Scrapyard | Discovered new exit (range 16) 81 | -11/Scrapyard | Entered Materials 304 | -10/Materials | Build established: Mutant 388 | -10/Materials | Discovered new exit (range 10) 698 | -10/Materials | Discovered new exit (range 12) 698 | -10/Materials | Discovered new exit (range 5) 914 | -10/Materials | Discovered new exit (range 16) 1744 | -10/Materials | Discovered new exit (range 7) 1828 | -10/Materials | Discovered new exit (range 7) 1845 | -10/Materials | Entered Subcaves 1873 | -10/Subcaves | Learned Materials non-interactive machine intel 2023 | -10/Subcaves | Ambushed by angry Subdweller bent on revenge 2188 | -10/Subcaves | Core integrity fell below 50% 2214 | -10/Subcaves | Core integrity fell below 20% 2235 | -10/Subcaves | Destroyed by 8H-R9L(R) with Subdweller Machine Gun Last Messages --------------- Data stored: Materials non-interactive machine intel. 01988_ JB-URF(u) builds Twisted Machinery. 02008_ JB-URF(u) cries out in pain. 02008_ JB-URF(u) destroyed. 02022_ Acquired Wheel. 02023_ 96-AVT(R) angrily emerges from the Twisted Machinery. 02023_ 96-AVT(R): "WEHOME!" 02025_ Acquired Wheel. 02026_ Imp. Medium Laser destroyed. 02026_ 96-AVT(R) suffers critical hit (Burn). 02034_ Wheel destroyed. 02040_ Sub. Power Source melted. 02040_ 96-AVT(R) destroyed. 02042_ Acquired 10 matter. 02151_ VO-9JS(R) destroyed. 02154_ Acquired 10 matter. 02181_ Lgt. Treads destroyed. 02189_ Wheel destroyed. 02205_ Hvy. Ion Engine destroyed. 02217_ Lgt. Treads destroyed. Map ----- +----------------------------------------------------+ | ?????????????????????????????????????????????????? | | ?????????????????????????????????????????????????? | | ?????????????????????????????????????????????????? | | ?????????????????????????????????????????????????? | | ?????????????????????????????????????????????????? | | ?????????????????????????????????????????????????? | | ?????????????????????????????????????????????????? | | ?????????????????????????????????????????????????? | | ?????????????????????????????????????????????????? | | ?????????????????????????????????????????????????? | | ?????????????????????????????????????????????????? | | ?????????????????????????????????????????????????? | | ?????????????????????????????????????????????????? | | ?????????????????????????????????????????????????? | | ?????????????????????????????????????????????????? | | ?????????????????????????????????????????????????? | | ?????????????????????????????????????????????????? | | ####???######??###########???????????????????????? | | # ##### #### ## # ########????????????????? | | ## [!& """"" ????????????????? | | *%& """"" ????????????????? | | # # ### &#& ""##" ????????????????? | | #############?## "## "##???????????????????? | | ##??????????????# ## "##???????????????????? | | ##???????????????# #"""###?????????????????? | | ##????????????????## #@R"""" ?????????????????? | | #??????????????????##### " #????????????????? | | ##?????????????????????# ## "#????????????????? | | #????????????????????? ?# #????????????????? | | #????????????????????? ? ???????????????? | | #????????????????????? ??? ??????????????? | | ###????????????????????? ###??????????????????? | | ##??????????????????????? #?????????????????????? | | ????????????????????????? "??????????????????????? | | ?????????????????????????????????????????????????? | | ?????????????????????????????????????????????????? | | ?????????????????????????????????????????????????? | | ?????????????????????????????????????????????????? | | ?????????????????????????????????????????????????? | | ?????????????????????????????????????????????????? | | ?????????????????????????????????????????????????? | | ?????????????????????????????????????????????????? | | ?????????????????????????????????????????????????? | | ?????????????????????????????????????????????????? | | ?????????????????????????????????????????????????? | | ?????????????????????????????????????????????????? | | ?????????????????????????????????????????????????? | | ?????????????????????????????????????????????????? | | ?????????????????????????????????????????????????? | | ?????????????????????????????????????????????????? | +----------------------------------------------------+ Best States ------------- Heat Dissipation 35 Energy Generation 14 Energy Capacity 280 Matter Stores 300 Matter Capacity 300 Sight Range 16 Terrain Scan Density 10 Evasion (%) 50 Recoil Reduction 2 Item Schematics ----------------- None Robot Schematics ------------------ None Fabricated ------------ Nothing Alien Tech Used ----------------- None Achievements -------------- None Challenges ------------ None Game ------ Seed FactorySpectralShielding Manual? 0 Play Time 00:12:27 Cumulative 671.1 hours Start 2023.12.22 @ 20:30:29 End 2023.12.22 @ 20:41:09 Sessions 1 Manual Loads 0 Difficulty Rogue Special Mode None Game No. 671 Rogue 670 Adventurer 0 Explorer 1 Win Type - Total 32 Types 23/0/6/3/0/0/0/0/0 Lore% 84 Gallery% 90 Achievement% 79 Wizard Run 0 Options --------- ASCII 0 Keyboard 1 Movement Vi Keybinds 0 Fullscreen 1 Font 18/SmallcapsGlow Map View 76x50 Zoom Use 30% Tactical HUD 1 Map Filters NONE Filters NONE Steam 1 RUN: 76752d08-4b10-4b2c-8d63-7ba8cb81cb2e